Cogmind - Beta 17.1 @@@ ROGUE MODE // 2026.09.11 @ 22:26:28 Player: poison Result: Destroyed by Y-45 Defender with Beam Rifle Performance ------------- Evolutions (1) 500 Regions Visited (3) 600 Robots Destroyed (37) 185 Value Destroyed (496) 496 Prototype IDs (2) 40 Alien Tech Used (0) 0 Bonus (0) 0 TOTAL SCORE: 1821 Bonus ------- None Cogmind --------- Core Integrity 0/400 Matter 69/300 Energy 100/100 System Corruption 0% Temperature Cool (9) Movement Core (200) Ox3 Location -9/Materials Parts ------- > --- POWER (1) -------- (None) > --- PROPULSION (3) --- (None) > --- UTILITY (3) ------ Medium Storage Unit > --- WEAPON (2) ------- (None) > --- INVENTORY (10) --- High-capacity Storage Unit Huge Storage Unit High-capacity Matter Pod (78) Sensor Array Signal Interpreter ECM Suite Beam Cannon Grenade Launcher Datajack Peak State ------------ > --- POWER ------------ Light Ion Engine > --- PROPULSION ------- Hover Unit Hover Unit Hover Unit > --- UTILITY ---------- Medium Storage Unit Medium Armor Plating Hacking Suite > --- WEAPON ----------- Assault Rifle Assault Rifle > --- INVENTORY -------- Wheel High-capacity Storage Unit Huge Storage Unit High-capacity Matter Pod Sensor Array Signal Interpreter ECM Suite Beam Cannon Grenade Launcher Datajack [Rating: 13] Favorites ----------- Power Ion Engine Engine Ion Engine Propulsion Aluminum Leg Leg Aluminum Leg Wheel Wheel Hover Unit Hover Unit Flight Unit Flight Unit Utility Medium Storage Unit Device Sensor Array Storage Medium Storage Unit Hackware Hacking Suite Protection Medium Armor Plating Weapon Assault Rifle Ballistic Gun Assault Rifle Launcher Grenade Launcher Build | -11 -10 -10 -9 ------- Run | Yrd Mat Min Mat Slots Evolved 2 | . . . 2 Power . | . . . . Propulsion 1 | . . . 1 Utility 1 | . . . 1 Weapon . | . . . . Parts Attached 25 | 6 14 . 5 Power 4 | 1 2 . 1 Engine 4 | 1 2 . 1 Core . | . . . . Reactor . | . . . . Propulsion 8 | 2 4 . 2 Treads . | . . . . Leg 2 | 2 . . . Wheel 1 | . . . 1 Hover 3 | . 2 . 1 Flight 2 | . 2 . . Utility 6 | 2 2 . 2 Device 2 | 1 1 . . Storage 2 | 1 1 . . Processor . | . . . . Hackware 1 | . . . 1 Protection 1 | . . . 1 Artifact . | . . . . Weapon 7 | 1 6 . . Energy Gun . | . . . . Energy Cannon . | . . . . Ballistic Gun 6 | 1 5 . . Ballistic Cannon . | . . . . Launcher 1 | . 1 . . Special Weapon . | . . . . Impact Weapon . | . . . . Slashing Weapon . | . . . . Piercing Weapon . | . . . . Special Melee Weapon . | . . . . Unidentified Prototypes . | . . . . Parts Lost 10 | . 1 . 9 Power 1 | . . . 1 Propulsion 4 | . . . 4 Utility 3 | . 1 . 2 Weapon 2 | . . . 2 Highest Loss Streak 7 | . 1 . 7 To Critical Strikes . | . . . . Average Backups 8 | . 8 10 9 Power . | . . . . Propulsion 2 | . 2 2 . Utility 4 | . 4 6 5 Weapon 1 | . . 1 1 Tool/Special . | . . . . Unused Backups 15 | . 7 . 8 Power 1 | . 1 . . Propulsion 4 | . 3 . 1 Utility 6 | . 1 . 5 Weapon 3 | . 2 . 1 Tool/Special 1 | . . . 1 Average Slot Usage (%) 94 | . 95 100 87 Engine 12 | . 14 14 7 Leg 14 | . 18 . . Hover 11 | . 8 28 25 Flight 1 | . 1 . . Device 10 | . 11 14 3 Storage 13 | . 14 14 11 Hackware 1 | . . . 9 Protection 1 | . . . 6 Ballistic Gun 19 | . 19 28 18 Launcher 5 | . 6 . 1 Peak Build Rating 13 | 6 8 8 13 Average Rating 7 | 4 7 8 10 On Entrance 5 | . 6 8 8 Avg Prop Armor Cover (%) 8 | . 3 . 8 Naked Turns . | . . . . Heaviest Build 25 | 12 21 18 25 Greatest Support 20 | 20 20 12 18 Greatest Overweight (x) 3 | 3 3 1 3 Average Overweight (x) . | . . 1 . Largest Inventory Capacity 10 | 8 10 10 10 Average Capacity 9 | 7 9 10 10 Most Carried 10 | 2 10 10 10 Average Carried 8 | . 8 10 9 Final Capacity 10 | 8 10 10 10 Final Carried 10 | 2 10 10 9 Class Distribution -------------------- 85% | Mutant 14% | Scavenger-Mutant Dominant Class ---------------- Mutant | -10/Materials Mutant | -10/Mines Scavenger-Mutant | -9/Materials Resources | -11 -10 -10 -9 ----------- Run | Yrd Mat Min Mat Matter Collected 815 | 64 624 36 91 Remotely . | . . . . Salvage Created 1120 | 86 833 . 201 Parts 72 | 4 57 . 11 Haulers Intercepted 2 | . 2 . . Recyclers Shooed 2 | . 2 . . Parts Field Recycled . | . . . . Retrieved Matter . | . . . . Parts Self-Destructed . | . . . . Prevented . | . . . . Parts Restored . | . . . . Kills | -11 -10 -10 -9 ------- Run | Yrd Mat Min Mat Combat Hostiles Destroyed 18 | . 13 . 5 Guns 15 | . 13 . 2 AOE 3 | . . . 3 Classes Destroyed 8 | 2 6 . . Worker 7 | . 6 . 1 Tunneler 3 | 1 1 . 1 Hauler 2 | . 2 . . Recycler 4 | 1 2 . 1 Operator 1 | . 1 . . Watcher 2 | . 2 . . Swarmer 10 | . 7 . 3 Grunt 8 | . 6 . 2 Best Kill Streak 4 | 2 2 . 4 Combat Bots Only 3 | . 2 . 3 Max Kills in Single Turn 1 | 1 1 . 1 Gunslinging . | . . . . Exploded 1 | . . . 1 Melee . | . . . . Uniques/NPCs Destroyed . | . . . . Combat | -11 -10 -10 -9 -------- Run | Yrd Mat Min Mat Hostile Shots Fired 169 | . 54 1 114 Missed 62 | . 22 . 40 Hits 107 | . 32 1 74 Projectile 107 | . 32 1 74 Critical Strikes 2 | . . . 2 Damage Taken 1277 | . 296 12 969 Core 447 | . 32 12 403 Absorbed by Shields . | . . . . Core Remaining (%) 91 | 100 . 82 . Volleys Fired 138 | 10 97 . 31 Largest 2 | 1 2 . 2 Hottest 50 | 20 50 . 50 Shots Fired 214 | 10 142 . 62 Gun 208 | 10 141 . 57 Cannon . | . . . . Launcher 6 | . 1 . 5 Special . | . . . . Kinetic 208 | 10 141 . 57 Thermal . | . . . . Explosive 6 | . 1 . 5 Electromagnetic . | . . . . Robot Hit Streak 13 | 7 13 . 4 Robot Miss Streak 6 | 1 3 . 6 Penetration Max . | . . . . Secondary Targets 1 | . 1 . . Max Gunslinging Chain 1 | . 1 . . Shots Hit Robots 132 | 9 91 . 32 Core Hits 62 | 4 45 . 13 Critical Kills 1 | . 1 . . Critical Parts Destroyed . | . . . . Critical Strikes 1 | . 1 . . Destroy 1 | . 1 . . Melee Attacks . | . . . . Impact . | . . . . Slashing . | . . . . Piercing . | . . . . Sneak Attacks . | . . . . Combat Hostiles . | . . . . Follow-up Attacks . | . . . . Damage Inflicted 1763 | 76 943 . 744 Guns 1408 | 76 943 . 389 Cannons . | . . . . Explosions 355 | . . . 355 Melee . | . . . . Ramming . | . . . . Kinetic 1408 | 76 943 . 389 Thermal . | . . . . Explosive 355 | . . . 355 Electromagnetic . | . . . . Impact . | . . . . Slashing . | . . . . Piercing . | . . . . Highest Corruption . | . . . . Average Corruption . | . . . . Corruption Purged . | . . . . Corruption Blocked . | . . . . Overload Shots . | . . . . Overflow Damage . | . . . . Projectiles . | . . . . Explosions . | . . . . Melee . | . . . . Knockbacks . | . . . . Impact . | . . . . Kinetic . | . . . . Secondary . | . . . . Self-Inflicted Damage 72 | . 1 . 71 Shots 4 | . 1 . 3 Rammed . | . . . . Targets Rammed . | . . . . Kicked . | . . . . Crushed . | . . . . Highest Temperature 12 | . 12 . 2 Average Temperature 4 | . 6 . 1 Received Heat Transfer 423 | . 78 6 339 Siege Activations . | . . . . Martial Activations . | . . . . Shielding Activations . | . . . . Robots Disrupted . | . . . . Combat Hostiles . | . . . . Robots Corrupted . | . . . . Combat Hostiles . | . . . . Parts Fried 2 | . 2 . . Impact Corruptions . | . . . . Robots Melted . | . . . . Combat Hostiles . | . . . . Parts Melted . | . . . . Heat Transferred . | . . . . Parts Sabotaged . | . . . . Parts Stolen . | . . . . Parts Stripped . | . . . . Power Chain Reactions . | . . . . Alert | -11 -10 -10 -9 ------- Run | Yrd Mat Min Mat Maximum Alert Level . | . . . . Low Security (%) 100 | 100 100 100 100 Level 1 . | . . . . Level 2 . | . . . . Level 3 . | . . . . Level 4 . | . . . . Level 5 . | . . . . High Security . | . . . . Max Security . | . . . . Peak Influence 183 | 5 183 8 91 Initial 8 | . . 8 . Average 57 | 1 68 2 23 Influence Increases 795 | 10 534 . 251 Destroy 0b10 Robot/C 360 | . 260 . 100 Destroy 0b10 Robot/NC 95 | 10 70 . 15 Destroy Leader 88 | . 58 . 30 Trap Triggered on 0b10 20 | . 20 . . Successful Hack 41 | . 27 . 14 Disable Machine 30 | . 15 . 15 Destroy Structure 41 | . 9 . 32 Lose Combat Pursuer 120 | . 75 . 45 Influence Decreases 758 | 10 511 23 214 Entered New Map 15 | . . 15 . Time Decay 652 | 10 501 8 133 Lost Part 20 | . 10 . 10 Purge Threat 71 | . . . 71 Squads Dispatched 7 | . 3 . 4 Investigation 1 | . 1 . . Extermination . | . . . . Reinforcement 6 | . 2 . 4 Assault . | . . . . Garrison . | . . . . Intercept . | . . . . Searches Triggered . | . . . . Construction Impeded 1 | . . . 1 Haulers Reinforced . | . . . . Active Scanning Responses . | . . . . Cargo Convoy Interrupts . | . . . . Stealth | -11 -10 -10 -9 --------- Run | Yrd Mat Min Mat Distress Signals 2 | . 1 . 1 Communications Jammed . | . . . . Distress Signals . | . . . . Times Spotted 54 | . 32 2 20 Peak Tracking Total 12 | . 4 2 12 Tactical Retreats 5 | . 4 . 1 Traps | -11 -10 -10 -9 ------- Run | Yrd Mat Min Mat Traps Triggered 2 | . 1 . 1 Indirectly . | . . . . Trap Hack Attempts . | . . . . Triggered . | . . . . Disarmed . | . . . . Reprogrammed 4 | . 4 . . Reused 2 | . 2 . . Traps Extracted . | . . . . Installed . | . . . . Triggered 2 | . 2 . . Machines | -11 -10 -10 -9 ---------- Run | Yrd Mat Min Mat Machines Disabled 2 | . 1 . 1 Max in Single Turn 1 | . 1 . 1 Machines Repaired . | . . . . Machines Dismantled . | . . . . Machines Sabotaged . | . . . . Overloaded Fab Kills . | . . . . Hacking | -11 -10 -10 -9 --------- Run | Yrd Mat Min Mat Machines Accessed 11 | . 8 . 3 Terminals 10 | . 7 . 3 Fabricators . | . . . . Repair Stations . | . . . . Recycling Units 1 | . 1 . . Scanalyzers . | . . . . Garrison Access . | . . . . Total Hacks 20 | . 15 . 5 Successful 14 | . 9 . 5 Failed 6 | . 6 . . Catastrophic 1 | . 1 . . Database Lockouts . | . . . . Manual 2 | . 2 . . Terminals 18 | . 13 . 5 Fabricators . | . . . . Repair Stations . | . . . . Recycling Units 2 | . 2 . . Scanalyzers . | . . . . Garrison Access . | . . . . Terminal Hacks 12 | . 7 . 5 Record 1 | . . . 1 Robot Analysis 1 | . 1 . . Prototype ID Bank 1 | . 1 . . Branch Access Points 2 | . 1 . 1 Unreport Threat 1 | . . . 1 Locate Traps 2 | . 2 . . Reprogram Traps 1 | . 1 . . Maintenance Status 1 | . . . 1 Hauler Manifests 1 | . 1 . . Zone Layout 1 | . . . 1 Fabricator Hacks . | . . . . Repair Station Hacks . | . . . . Recycling Unit Hacks 2 | . 2 . . Report Inventory 1 | . 1 . . Retrieve Components 1 | . 1 . . Scanalyzer . | . . . . Garrison Access Hacks . | . . . . Unauthorized Hacks . | . . . . Terminals . | . . . . Fabricators . | . . . . Repair Stations . | . . . . Recycling Units . | . . . . Scanalyzers . | . . . . Garrison Access . | . . . . Data Cores Recovered 1 | . 1 . . Used . | . . . . Hacking Detections 5 | . 3 . 2 Full Trace Events . | . . . . Feedback Events . | . . . . Feedback Blocked . | . . . . Robot Schematics Acquired . | . . . . Robots Built . | . . . . Authchips . | . . . . Time . | . . . . Total Robot Build Rating . | . . . . Part Schematics Acquired . | . . . . Parts Built . | . . . . Authchips . | . . . . Time . | . . . . Total Part Build Rating . | . . . . Part Studies Acquired . | . . . . Parts Repaired . | . . . . Time . | . . . . Parts Recycled . | . . . . Recycled Matter . | . . . . Retrieved Matter . | . . . . Retrieved Components 3 | . 3 . . Parts Scanalyzed . | . . . . Part Schematics Acquired . | . . . . Parts Damaged . | . . . . Bothacking | -11 -10 -10 -9 ------------ Run | Yrd Mat Min Mat Used RIF Installer . | . . . . Robots Hacked . | . . . . Non-combat . | . . . . Combat . | . . . . Robot Hacks Applied . | . . . . Relay Couplers Released . | . . . . Fabnet Peak Effective % . | . . . . Robots Rewired . | . . . . Allies Hacked . | . . . . Hacks Repelled . | . . . . Allies | -11 -10 -10 -9 -------- Run | Yrd Mat Min Mat Total Allies . | . . . . Largest Group . | . . . . Highest-Rated Group . | . . . . Highest-Rated Ally . | . . . . Total Orders . | . . . . Ally Attacks . | . . . . Total Damage . | . . . . Kills . | . . . . Allies Corrupted . | . . . . Allies Melted . | . . . . Intel | -11 -10 -10 -9 ------- Run | Yrd Mat Min Mat Active Infowar (turns) 1832 | 35 1614 57 126 Sensors 1273 | . 1090 57 126 Seismic 559 | 35 524 . . Robot Analysis Total 1 | . 1 . . Derelict Logs Recovered . | . . . . Drone Launches . | . . . . Drone Recoveries . | . . . . Exploration | -11 -10 -10 -9 ------------- Run | Yrd Mat Min Mat Turns Passed 2481 | 89 1910 57 425 Spaces Moved 1602 | 49 1134 50 369 Core 17 | 9 . . 8 Treads . | . . . . Legs 741 | 40 701 . . Wheels 150 | . . . 150 Hover 662 | . 401 50 211 Flight 32 | . 32 . . Fastest Speed 50 | 50 116 116 52 Average Speed 122 | 123 135 116 82 Slowest Speed 240 | 200 240 116 200 Overloaded Moves . | . . . . Propulsion Burnouts . | . . . . Robots Hopped . | . . . . Potential Cave-ins . | . . . . Cave-ins Triggered . | . . . . Exploration Rate (%) 33 | 4 92 15 24 Regions Visited 3 Branch Regions 1 Pre-discovered Areas . | . . . . Known Exits Taken 1 | . 1 . . Unknown Exits Taken 2 | 1 . 1 . Scrap Searched 1 | . . 1 . Spaces Dug . | . . . . Terrain Destroyed 44 | . 9 . 35 Melee . | . . . . Projectile . | . . . . AOE 44 | . 9 . 35 Terrain Rammed . | . . . . Walls Destroyed . | . . . . Machines Disabled . | . . . . Actions | -11 -10 -10 -9 --------- Run | Yrd Mat Min Mat Total 1926 | 66 1387 49 424 Wait 114 | . 104 . 10 Move 1599 | 48 1133 49 369 Hop . | . . . . Pick Up 24 | 2 19 . 3 Fast Attach 11 | 6 5 . . Attach 3 | . . . 3 Detach 1 | . 1 . . Swap 15 | . 9 . 6 Drop 21 | . 19 . 2 Fire 138 | 10 97 . 31 Melee . | . . . . Ram . | . . . . Kick . | . . . . Crush . | . . . . Escape Stasis . | . . . . Rewire . | . . . . Trap . | . . . . Miscellaneous . | . . . . Route ------- -11/Scrapyard -10/Materials (discovered 5 exits: *Mat x3 / *Min / [*Sub]) -10/Mines -9/Materials (discovered 1 exit: Min) History --------- Turn | Location | Event 18 | -11/Scrapyard | Discovered new exit (range 16) 90 | -11/Scrapyard | Entered Materials 229 | -10/Materials | Identified exit to Mines 300 | -10/Materials | Build established: Mutant 446 | -10/Materials | Discovered new exit (range 4) 695 | -10/Materials | Discovered new exit (range 14) 923 | -10/Materials | Discovered new exit (range 8) 1612 | -10/Materials | Discovered new exit (range 9) 2000 | -10/Materials | Entered Mines 2047 | -10/Mines | Discovered new exit (range 9) 2057 | -10/Mines | Entered Materials 2057 | -9/Materials | Evolved 2 slots: Propulsion x1, Utility x1 2148 | -9/Materials | Identified exit to Mines 2365 | -9/Materials | Build established: Scavenger-Mutant 2467 | -9/Materials | Core integrity fell below 50% 2477 | -9/Materials | Core integrity fell below 20% 2482 | -9/Materials | Destroyed by Y-45 Defender with Beam Rifle Last Messages --------------- Acquired 44 matter. K-01 Serf collects debris. T-07 Excavator destroyed. O-16 Technician: "IFF HANDSHAKE FAILED. SECURING TERMINAL." ALERT: Hostiles spotted, dispatching reinforcements to Terminal M004. Hover Unit destroyed. Assault Rifle destroyed. Med. Armor Plating destroyed. Hacking Suite destroyed. Critical hit (Burn: +37). Assault Rifle destroyed. Hover Unit destroyed. ALERT: Hostiles spotted, dispatching reinforcements to Terminal M007. Wheel destroyed. Triggered Blade Trap. Massive razor-sharp blades shoot up from within the floor. Map ----- +----------------------------------------------------+ | | | | | | | | | ??????????????????????????????? | | ??????????????????????????????? | | ??????????????????????????????? | | ??????????????????????????????? | | ??????????????????????????????? | | ??????????????????????????????? | | ??????????????????????????????? | | ??????????????????????????????? | | ??????????????????????????????? | | ??????????????????????????????? | | ??????????????????????????????? | | ??????????????????????????????? | | ??????????????????????????????? | | ??????????????##############??? | | ???????????#### #### | | ???????????# # """"" + | | ???????????# # """"" #### | | ???????????+ %+* """"" #??? | | ???????????# # #??? | | ?????#+#??## ###"""T"""####??? | | ?????# #### ##########?????? | | ?????#@ Y #??????????????? | | ?????# Y #??????????????? | | ?????## ### #??????????????? | | ???####+#?## ##??????????????? | | ??# # #???????????????? | | ??? """ + / ??????????????? | | ??? """ # # "?????????????? | | ???? """ ??# # ????????????? | | ??? ????# #? ???????????? | | ??# "??????# #??###??????????? | | ???????????# #???????????##### | | ???????????# #???????????# | | ???????????# #???????????# | | ???######??# #???????????# | | ?# [ # #???????????+ # | | ?# + #???????????# # | | ?? """ """ # #???????????# # | | ?????" """ # #??????????## # | | ?????" """?## #??????????# | | ?????? ???# #??????????# | | ????? "????# #??????????# | | ????? "????# #??????????#! | | ??????#?????# #??????????# | | ????????????# #???????????# # | | ????????????# #???????????# # | +----------------------------------------------------+ Best States ------------- Heat Dissipation 28 Energy Generation 10 Energy Capacity 250 Matter Stores 300 Matter Capacity 300 Sight Range 16 Robot Scan Range 14 Terrain Scan Density 10 Armor Coverage 225 Evasion (%) 55 Offensive Hacking 10 Item Schematics ----------------- None Robot Schematics ------------------ None Fabricated ------------ Nothing Repaired ---------- Nothing Studied --------- None Alien Tech Used ----------------- None Achievements -------------- None Challenges ------------ None Game ------ Seed MatterRiotDecompositor Manual? 0 Play Time 00:23:49 Cumulative 9.0 hours Start 2026.09.11 @ 22:07:09 End 2026.09.11 @ 22:26:28 Sessions 1 Manual Loads 0 Difficulty Rogue Special Mode None Game No. 14 Rogue 14 Adventurer 0 Explorer 0 Win Type - Total 0 Types 0/0/0/0/0/0/0/0/0/0 Lore% 8 Gallery% 12 Achievement% 10 Wizard Run 0 Options --------- Layout 1 ASCII 0 Keyboard 0 Movement Arrows Keybinds 0 Fullscreen 1 Font 24/Smallcaps Map View 50x35 Zoom Use 0% Tactical HUD 0 Map Filters NONE Filters NONE Steam 1 RUN: 7e9e47dc-356f-44b5-90d8-9d197eacd3aa